{"text_format":"1","workbook":"xlsx","n_sheets":3,"sheets":["Guide d'utilisation","Questionnaire","Grille d'évaluation"],"not_rendered":{"charts":0,"images":3,"macros":1,"external_links":0,"defined_names":1,"comments":1,"pivot_tables":0},"unopened":[],"bounds":{"document_bytes":16777216,"sheet_cells":100000,"rows_first":2000,"rows_last":500,"rows_between":2000,"halvings":0,"cell_chars":16384,"cell_head_chars":4096},"cells_cut":0,"cells_raw":0,"read":"whole","date_system":"1900"}

{"sheet":"Guide d'utilisation","index":0,"n_rows":41,"n_cols":4,"rows_kept":41,"cut":false,"hidden":false,"merged":[]}
[]
["Le questionnaire comprend un certain nombre de questions répertoriées en 4 sections principales. "]
["La première section concerne l'évaluation de critères généraux, les 3 autres ainsi que leur rubriques suivent le flux des bouteilles depuis leur arrivée jusqu'à leur sortie du centre de lavage. "]
[]
[1,{"$f":"Questionnaire!D6","v":"Critères généraux QSHE"}]
[2,{"$f":"Questionnaire!D38","v":"Zones de tri avant laveuse "}]
[null,null,{"$f":"Questionnaire!D39","v":"Arrivée et entreposage des emballages sales"}]
[null,null,{"$f":"Questionnaire!D48","v":"Tri terminal et préparation au lavage des emballages sales  "}]
[3,{"$f":"Questionnaire!D60","v":"Zone Laveuse "}]
[null,null,{"$f":"Questionnaire!D61","v":"Opérateurs de la laveuse"}]
[null,null,{"$f":"Questionnaire!D64","v":"Laveuse"}]
[null,null,{"$f":"Questionnaire!D97","v":"Rinçage des emballages "}]
[4,{"$f":"Questionnaire!D102","v":"Zones sensibles après Laveuse"}]
[null,null,{"$f":"Questionnaire!D103","v":"Sortie de la laveuse jusqu'au packaging"}]
[null,null,{"$f":"Questionnaire!D132","v":"Zone de stockage des produits finis (palettes filmées d'emballages lavés)"}]
[null,null,{"$f":"Questionnaire!#REF!","v":{"$error":"#REF!"}}]
[]
["Les questions sont numérotés en colonne C et posées en colonne D"]
[]
["Chaque question est également classée par rapport à sa thématique. Les moyens mis en œuvre pour répondre à la question influent sur: "]
[]
[null,"La Qualité du lavage "]
[null,"La Sécurité des opérateurs"]
[null,"Le niveau d'Hygiène général du hall de lavage ou du site"]
[null,"La Traçabilité des opérations"]
[null,"L'Environnement"]
[]
["Enfin chaque question est également pondérée par rapport à sa criticité dans la mise sous contrôle des opérations. "]
[]
[null,"\"Majeure\"",null,"signifie qu'une réponse négative à cette question implique une action corrective à très court terme "]
[null,"\"Mineure\"",null,"signifie qu'une réponse négative à cette question implique une action corrective à moyen terme "]
[null,"\"Recommandé\"",null,"indique que la tendance suggéré par la question doit faire l'objet d'une réflexion pour une mise en œuvre souhaitable à long terme"]
[]
["NB: Cette pondération est évidemment modifiable (en colonne G) suivant le niveau d'exigence que l'on souhaite avoir sur chaque critère évalué ou globalement "]
[]
["Mode d'emploi du questionnaire:"]
[]
[null,"Avant de répondre au question, effectuer une remise à zéro de la colonne des réponses en cliquant sur le bouton \"RAZ évaluation\" en milieu d'écran à l'onglet \"Questionnaire\""]
[null,"Complétez votre évaluation, question après question, en colonne F de l'onglet \"Questionnaire\""]
[null,"Ajoutez éventuellement un commentaire en colonne J"]
[null,"Une fois que toutes les questions ont été évaluées, consulter le résultat de l'audit à l'onglet \"Grille d'évaluation\""]

{"sheet":"Questionnaire","index":1,"n_rows":136,"n_cols":16,"rows_kept":136,"cut":false,"hidden":false,"merged":[[0,2,0,10],[1,2,1,10]]}
[null,null,"Fréquence des audits : \nA définir par le metteur en marché (Recommandation : 1 fois par an)\nRéglement de l'évaluation: \nUne non-conformité majeure entraîne une obligation de mise en conformité dans un délai de 1 mois qui sera contrôlée lors d'une visite complémentaire d'un auditeur dans un délai de 2 mois\nUne non-conformité mineure entraîne une obligation  de mise en conformité dans un délai de 6 mois formalisée dans un plan d'action qui doit être transmis à l'auditeur sous 2 mois après l'inspection et dont les actions correctives et leurs résultats devront être présentés aux auditeurs l'année suivante\nUne recommandation revêt un caractère de sensibilisation à un risque considéré comme faible dont la prise en compte est laissée à l'industriel"]
[null,null,"En cas de non respect de l'injonction de remise en conformité, le comité d'audit peut prendre un certain nombre de décisions de restrictions voire de sanctions pouvant aller jusqu'à la suspension de l'autorisation d'exercer l'activité avec le client jusqu'au retour à l'absence totale de non conformités majeures dûment constatée.",null,null,null,null,null,null,null,null,null,null,"Evaluation NC",null,"Thématique Question"]
[null,null,"N° question","Points de contrôle","Thématiques des questions","Réponses après audit","Types de non Conformité\n(Min. / Maj.)",{"$f":"SUBTOTAL(9,H7:H136)","v":0},{"$f":"SUBTOTAL(9,I7:I136)","v":120},null,"Commentaires complémentaires aux réponses"]
[null,null,0,"Question préliminaire",null,null,null,"R","Q"]
[null,null,0,"Le site possède-t-il déjà une ou plusieurs certifications ? Si oui, préciser lesquelles."]
[null,null,1,"Critères généraux QSHE",null,null,null,"R","Q"]
[null,null,1,"Le site a-t-elle procédé à une analyse de risque pour chaque poste opérateur?","Sécurité opérateurs",null,"Majeure",{"$f":"IF(ISBLANK(F7),0,1)","v":0},{"$f":"IF(ISBLANK(D7),0,1)","v":1},{"$f":"F7&\" \"&G7","v":" Majeure"}]
[null,null,{"$f":"C7+1","v":2},"Les EPI mis à disposition des opérateurs sont-ils en rapport avec cette analyse de risque? ","Sécurité opérateurs",null,"Majeure",{"$f":"IF(ISBLANK(F8),0,1)","v":0},1," Majeure"]
[null,null,{"$f":"C8+1","v":3},"Le site a-t-il mis en œuvre une démarche HACCP et identifié des CCP qui sont suivis? ","Hygiène générale",null,"Majeure",0,1," Majeure"]
[null,null,{"$f":"C9+1","v":4},"L'atelier de production présente-t-il des délimitations précises de zones sales, intermédiaire et propres et d'une cartographie \"zone matières premières (emballages à l'arrivée)\" et zone \"produits finis (emballages prêts à repartir)\"? ","Hygiène générale",null,"Majeure",0,1," Majeure"]
[null,null,5,"Les franchissements de zones sont-ils canalisés dans des passages contrôlés?  ","Hygiène générale",null,"Majeure",0,1," Majeure"]
[null,null,6,"Le contrôle des flux est-il mis en place pour les personnes, matériels roulants, palettes pour éviter les contaminations croisées ?","Hygiène générale",null,"Majeure",0,1," Majeure"]
[null,null,7,"des tire-palettes sont dédiés aux zones sensibles ? ","Qualité lavage",null,"Mineure",0,1,{"$f":"F13&\" \"&G13","v":" Mineure"}]
[null,null,8,"Y a-t-il un programme de nettoyage concernant les matériels déplacés d'une zone à l'autre ?  (matériels roulants, retours de maintenance…)","Hygiène générale",null,"Mineure",0,1," Mineure"]
[null,null,9,"Les pentes des sols permettent-elles d'éviter l'accumulation de flaques stagnantes?","Hygiène générale",null,"Mineure",0,1," Mineure"]
[null,null,10,"Existe-t-il des crevasses ou rétentions aux jonctions mur/sol ?","Hygiène générale",null,"Mineure",0,1," Mineure"]
[null,null,11,"Existe-t'il des points de lavage des mains en nombre suffisant dans l'atelier de production?","Hygiène générale",null,"Mineure",0,1," Mineure"]
[null,null,12,"Le personnel accédant aux ateliers de production doit-il révêtir un habillement particulier et suivre des règles d'hygiène strictes? (blouse, charlotte, bijoux,…)  ","Hygiène générale",null,"Mineure",0,1," Mineure"]
[null,null,13,"Les ustensiles de lavage (outils de nettoyage des surfaces de la zone propre : balais, raclette, brosse etc) sont-ils en nombre suffisant (au moins un par poste de travail), en bon état et présentent-ils un code de couleur pour pouvoir les cantonner à une zone déterminée en évitant les contaminations croisées?  ","Hygiène générale",null,"Mineure",0,1," Mineure"]
[null,null,14,"Les machines en présence sont exemptes de fissures, rétentions, protections manquantes, de traces de chocs, de rouille, de peinture qui s’écaille, de surplus de graisse, de fuite d’huile,…?","Hygiène générale",null,"Mineure",0,1," Mineure"]
[null,null,15,"Les égouts sont-ils nettoyés à une fréquence et une méthodologie adaptées à la technique d'évacuation?","Hygiène générale",null,"Mineure",0,1," Mineure"]
[null,null,16,"Existe-t-il un disposititif de récupération et réutilisation partielle des bains de soude des laveuses? (décantation, filtration, floculation…)","Environnement",null,"Recommandé",0,1," Recommandé"]
[null,null,17,"Le rejet des solutions caustiques dans les effluents du site se fait-il sous contrôle de pH? ","Environnement",null,"Recommandé",0,1," Recommandé"]
[null,null,18,"Existe-t-il un plan de nettoyage complet déterminant les opérations quotidiennes, hebdo et mensuelles?","Hygiène générale",null,"Mineure",0,1," Mineure"]
[null,null,19,"Existe-t-il un plan d'urgence (gestion des non-conformités) prêt à être appliqué en cas de nos conformité des résultats de lavage ?","Sécurité consommateur",null,"Majeure",0,1," Majeure"]
[null,null,20,"Existe-t-il un plan de maitrise des nuisibles ?","Hygiène générale",null,"Recommandé",0,1," Recommandé"]
[null,null,21,"Le site est-il équipé de pièges à insectes volants ?","Qualité lavage",null,"Recommandé",0,1," Recommandé"]
[null,null,22,"Les carters d'éclairage sont propres, sans débris d'insectes?","Qualité lavage",null,"Recommandé",0,1," Recommandé"]
[null,null,23,"Des moyens d'interdiction d'accès à l'intérieur des bâtiments existent-ils pour les personnes extérieures à l'entreprise ? (chauffeurs, sous-traitants…) ","Sécurité consommateur",null,"Majeure",0,1," Majeure"]
[null,null,24,"Des postes de prise de savon bactéricide sont installées en entrée des ateliers? ","Qualité lavage",null,"Mineure",0,1," Mineure"]
[null,null,25,"Des postes de prise de savon bactéricide sont installées en divers points des ateliers (WC)? ","Qualité lavage",null,"Mineure",0,1," Mineure"]
[null,null,26,"Existe-t-il un programme de formation au bonnes pratiques de fabrication pour tous les employés, y compris la maintenance ?","Hygiène générale",null,"Mineure",0,1," Mineure"]
[null,null,27,"Le site a-t-il mis en place un process d'enregistrement et de gestion des réclamations de ses Clients?","Hygiène générale",null,"Mineure",0,1," Mineure"]
[null,null,28,"Les fournisseurs ou partenaires principaux sont-ils évalués annuellement et les réclamations auprès d'eux sont-elles suivies?","Hygiène générale",null,"Mineure",0,1," Mineure"]
[null,null,{"$f":"C34+1","v":29},"Un programme de maintenance contrôle-t-il l'état du matériel et  des dégradations qui gênent le nettoyage (corrosion, craquelures, piqures, fissures…)","Qualité lavage",null,"Mineure",0,1," Mineure"]
[null,null,{"$f":"C35+1","v":30},"Les réparations nécessaires sont-elles enregistrées puis validées quand elles sont réalisées?","Traçabilité",null,"Mineure",0,1," Mineure"]
[null,null,31,"Les opérateurs de maintenance sont-ils formés à intervenir dans des conditions de bonne hygiène alimentaire et déclenchent un nettoyage avant remise en service des machines?","Qualité lavage",null,"Mineure",0,1," Mineure"]
[null,null,2,"Zones de tri avant laveuse "]
[null,null,null,"Arrivée et entreposage des emballages sales"]
[null,null,{"$f":"C37+1","v":32},"Les critères de tri et d'état des caisses sont-ils contrôlés au déchargement des emballages sales? ","Qualité lavage",null,"Recommandé",{"$f":"IF(ISBLANK(F40),0,1)","v":0},{"$f":"IF(ISBLANK(D40),0,1)","v":1},{"$f":"F40&\" \"&G40","v":" Recommandé"}]
[null,null,{"$f":"C40+1","v":33},"Ces critères sont-ils visuellement respectés? ","Qualité lavage",null,"Recommandé",0,1," Recommandé"]
[null,null,{"$f":"C41+1","v":34},"Les palettes de caisses d'emballages sales sont-elles filmées dans le cadre où elles sont stockées à l'extérieur?","Qualité lavage",null,"Recommandé",0,1," Recommandé"]
[null,null,35,"Les lots d'emballages sales sont-ils stockés dans une zone à l'abri des intempéries et de la lumière et à une température comprise entre 5 et 30°C?","Qualité lavage",null,"Recommandé",0,1," Recommandé"]
[null,null,36,"La durée de stockage avant lavage est-elle systématiquement inférieure à 1 mois? ","Qualité lavage",null,"Recommandé",0,1," Recommandé"]
[null,null,37,"Les lots d'emballages à laver sont-ils gérés en FIFO dans leur mise en lavage?","Qualité lavage",null,"Recommandé",0,1," Recommandé"]
[null,null,38,"Les lots d'emballages sont-ils identifiés par type ou date de réception ou fournisseur? ","Traçabilité",null,"Mineure",0,1," Mineure"]
[null,null,39,"Les camions de livraison sont-ils nettoyés et désinfectés régulièrement?","Qualité lavage",null,"Mineure",0,1," Mineure"]
[null,null,null,"Tri terminal et préparation au lavage des emballages sales  "]
[null,null,{"$f":"C47+1","v":40},"Avant lavage, les emballages contenant des corps étrangers visibles sont-ils éliminés?","Qualité lavage",null,"Mineure",{"$f":"IF(ISBLANK(F49),0,1)","v":0},{"$f":"IF(ISBLANK(D49),0,1)","v":1}," Mineure"]
[null,null,{"$f":"C49+1","v":41},"Avant lavage, les emballages présentant des ébréchures ou cassures sont-ils éliminés?","Qualité lavage",null,"Mineure",0,1," Mineure"]
[null,null,42,"Avant lavage, les emballages présentant des bouchons ou capsules sont-ils éliminés ou débouchés?","Qualité lavage",null,"Mineure",0,1," Mineure"]
[null,null,43,"Les opérations d'élimination sont-elles automatiques ?","Qualité lavage",null,"Recommandé",0,1," Recommandé"]
[null,null,44,"Les opérateurs interférant dans cette zone de préparation au lavage portent-ils leurs EPI? ","Sécurité opérateurs",null,"Majeure",0,1," Majeure"]
[null,null,45,"Les opérateurs interférant dans cette zone de préparation au lavage ont-ils suivi une sensibilisation à l'hygiène? ","Qualité lavage",null,"Mineure",0,1," Mineure"]
[null,null,46,"La zone de préparation au lavage est elle nettoyée au moins de manière hebdomadaire?","Qualité lavage",null,"Majeure",0,1," Majeure"]
[null,null,47,"Est-ce que le plan d'hygiène est disponible, lisible et compréhensible par tous ?","Qualité lavage",null,"Mineure",0,1," Mineure"]
[null,null,48,"Le plan d'hygiène prévoit-il une phase de détergence et de désinfection des derniers convoyeurs en entrée de la ou des laveuses? ","Qualité lavage",null,"Recommandé",0,1," Recommandé"]
[null,null,49,"Le plan d'hygiène est-il connu des opérateurs exécutant les opérations de nettoyage? ","Qualité lavage",null,"Mineure",0,1," Mineure"]
[null,null,50,"Ces opérateurs ont-il reçu une sensibilisation aux risques chimiques lié à l'utilisation de produits de nettoyage? ","Sécurité opérateurs",null,"Majeure",0,1," Majeure"]
[null,null,3,"Zone Laveuse "]
[null,null,null,"Opérateurs de la laveuse"]
[null,null,{"$f":"C59+1","v":51},"L'opérateur en charge de l'alimentation de la laveuse porte-t-il des EPI adaptés?","Sécurité opérateurs",null,"Majeure",{"$f":"IF(ISBLANK(F62),0,1)","v":0},{"$f":"IF(ISBLANK(D62),0,1)","v":1},{"$f":"F62&\" \"&G62","v":" Majeure"}]
[null,null,{"$f":"C62+1","v":52},"Participe-t-il lui aussi à l'élimination des emballages non conformes (corps étrangers, ébréchures, capsules, souillures non éliminables) qui auraient échappés aux contrôles précédents?","Qualité lavage",null,"Recommandé",0,{"$f":"IF(ISBLANK(D63),0,1)","v":1}," Recommandé"]
[null,null,null,"Laveuse"]
[null,null,{"$f":"C63+1","v":53},"Les points de consignes des paramètres de lavage sont-ils bien définis?","Qualité lavage",null,"Majeure",{"$f":"IF(ISBLANK(F65),0,1)","v":0},{"$f":"IF(ISBLANK(D65),0,1)","v":1},{"$f":"F65&\" \"&G65","v":" Majeure"}]
[null,null,{"$f":"C65+1","v":54},"Les temps de contact des produits détergents et désinfectants sont-ils respectés?","Qualité lavage",null,"Majeure",{"$f":"IF(ISBLANK(F66),0,1)","v":0},{"$f":"IF(ISBLANK(D66),0,1)","v":1},{"$f":"F66&\" \"&G66","v":" Majeure"}]
[null,null,{"$f":"C66+1","v":55},"Sont-ils contrôlés de manière automatique?","Fiabilité lavage",null,"Recommandé",0,1,{"$f":"F67&\" \"&G67","v":" Recommandé"}]
[null,null,{"$f":"C67+1","v":56},"Existe-t-il un système d'enregistrement de ces paramètres pour chaque run de production présentant températures, concentrations et cadence de production?","Hygiène générale",null,"Recommandé",0,1,{"$f":"F68&\" \"&G68","v":" Recommandé"}]
[null,null,57,"Ces paramètres sont-ils vérifiés quotidiennement (selon analyse de risque) par un autre dispositif (thermomètre, titrage de soude, etc.)?","Fiabilité lavage",null,"Majeure",0,1," Majeure"]
[null,null,58,"Les instruments permettant le contrôle des paramètres sont-ils intégrés dans un plan de maintenance préventive?","Fiabilité lavage",null,"Mineure",0,1," Mineure"]
[null,null,59,"Existe-t-il des systèmes d'alerte en cas de sortie de la plage de tolérance pour la température? ","Fiabilité lavage",null,"Mineure",0,1," Mineure"]
[null,null,60,"Existe-t-il des systèmes d'alerte en cas de sortie de la plage de tolérance pour les concentrations? ","Fiabilité lavage",null,"Mineure",0,1," Mineure"]
[null,null,61,"Les paramètres sont-ils constants quels que soient les lots d'emballages?","Fiabilité lavage",null,"Recommandé",0,1," Recommandé"]
[null,null,62,"En cas de changement de paramètres, est-il automatique selon le format, le niveau de saleté? ","Fiabilité lavage",null,"Recommandé",0,1," Recommandé"]
[null,null,63,"En cas de changement de paramètres, est-il consigné et rattaché au run de production? ","Traçabilité",null,"Recommandé",0,1," Recommandé"]
[null,null,64,"Chaque run de production est-il identifié et tracé? ","Traçabilité",null,"Majeure",0,1," Majeure"]
[null,null,65,"Le protocole de lavage des emballages a-t-il fait l'objet d'une qualification?","Qualité lavage",null,"Majeure",0,1," Majeure"]
[null,null,66,"Cette qualification est-elle disponible? ","Qualité lavage",null,"Mineure",0,1," Mineure"]
[null,null,67,"Les résultats des contrôles microbiologiques sont-ils conformes au cahier des charges défini avec les metteurs en marché ou l'analyse de risque ? ","Qualité lavage",null,"Majeure",0,1," Majeure"]
[null,null,68,"Font-ils l'objet de contrôles fréquents (dont la fréquence est définie selon l'analyse des risques et les résultats)?","Qualité lavage",null,"Majeure",0,1," Majeure"]
[null,null,69,"Ces résultats sont-ils consignés, archivés et consultables par les auditeurs?","Traçabilité",null,"Majeure",0,1," Majeure"]
[null,null,70,"Ce protocole de nettoyage est-il validé régulièrement au moins une fois tous les 2 ans? ","Qualité lavage",null,"Recommandé",0,1," Recommandé"]
[null,null,71,"La fréquence de vidange des bains a-t-elle était qualifiée ou repose-t-elle sur des critères objectifs (ex : MES, carbonate, DCO etc.)? ","Qualité lavage",null,"Mineure",0,1," Mineure"]
[null,null,72,"La fréquence de détartrage des bains a-t-elle était qualifiée ou repose-t-elle sur des critères objectifs ? ","Qualité lavage",null,"Mineure",0,1," Mineure"]
[null,null,73,"Sont-elle respectées avec le suivi de paramètres mesurables (MES, coupons d'entartrage?)","Qualité lavage",null,"Recommandé",0,1," Recommandé"]
[null,null,74,"La carbonatation des bains est-elle suivie? ","Qualité lavage",null,"Mineure",0,1," Mineure"]
[null,null,75,"Le dispositif de recharge du bain comporte-t-il une sonde inductive à compensation de température?","Fiabilité lavage",null,"Recommandé",0,1," Recommandé"]
[null,null,76,"Les installations de recharges automatiques des bains sont-elles localisées et conçues pour limiter le risque de projection de produits ou de solution sur les opérateurs de l'atelier?","Sécurité opérateurs",null,"Majeure",0,1," Majeure"]
[null,null,77,"Les contenants des produits de lavage sont-ils positionnées sur un bac de rétention?","Environnement",null,"Majeure",0,1," Majeure"]
[null,null,78,"Une analyse de l'eau de lavage est-elle disponible? ","Qualité lavage",null,"Recommandé",0,1," Recommandé"]
[null,null,79,"L'eau de lavage est-elle traitée en amont par rapport à sa dureté?","Qualité lavage",null,"Recommandé",0,1," Recommandé"]
[null,null,80,"L'eau de lavage est-elle traitée en amont par rapport à sa flore bactérienne? ","Qualité lavage",null,"Recommandé",0,1," Recommandé"]
[null,null,81,"La qualité du lavage des emballages est-elle contrôlée de manière automatique par une mireuse optique?","Sécurité consommateur",null,"Majeure",0,1," Majeure"]
[null,null,82,"L'absence d'allergènes sur les emballages en sortie de la laveuse a-t-elle été validée ?","Qualité lavage",null,"Majeure",0,1," Majeure"]
[null,null,83,"L'absence d'allergènes sur les emballages en sortie de la laveuse est-elle vérifiée périodiquement?","Qualité lavage",null,"Majeure",0,1," Majeure"]
[null,null,84,"Les premiers convoyeurs en sortie de laveuse sont-ils nettoyés et désinfectés quotidiennement?","Qualité lavage",null,"Mineure",0,1," Mineure"]
[null,null,null,"Rinçage des emballages "]
[null,null,{"$f":"C96+1","v":85},"La conformité de l'eau de rinçage est-elle contrôlée? (Acceptabilité : eau potable)","Qualité lavage",null,"Majeure",{"$f":"IF(ISBLANK(F98),0,1)","v":0},{"$f":"IF(ISBLANK(D98),0,1)","v":1},{"$f":"F98&\" \"&G98","v":" Majeure"},"vérifier quota eau potable "]
[null,null,86,"Les buses des rampes du dernier rinçage sont-elles contrôlées régulièrement?","Qualité lavage",null,"Mineure",0,{"$f":"IF(ISBLANK(D99),0,1)","v":1}," Mineure"]
[null,null,87,"Est-il procédé quotidiennement à des tests de contrôle de pH des traces résiduelles d'eau sur les surfaces internes et externes des emballages en sortie de la laveuse?  ","Qualité lavage",null,"Majeure",0,{"$f":"IF(ISBLANK(D100),0,1)","v":1}," Majeure"]
[null,null,{"$f":"C100+1","v":88},"Les résultats des tests de rinçage sont-ils consignés, archivés et consultables par les auditeurs?","Traçabilité",null,"Mineure",0,{"$f":"IF(ISBLANK(D101),0,1)","v":1}," Mineure"]
[null,null,4,"Zones sensibles après Laveuse"]
[null,null,null,"Sortie de la laveuse jusqu'au packaging"]
[null,null,{"$f":"C101+1","v":89},"Un dispositif de séchage des emballages a-t-il été mis en place après leur lavage?","Qualité lavage",null,"Recommandé",{"$f":"IF(ISBLANK(F104),0,1)","v":0},{"$f":"IF(ISBLANK(D104),0,1)","v":1},{"$f":"F104&\" \"&G104","v":" Recommandé"}]
[null,null,{"$f":"C104+1","v":90},"Une machine \"inspectrice\" permet-elle d'éliminer toute bouteille présentant des corps étrangers, des zones d'ombre caractérisant des souillures non éliminées, des débris de verre?   ","Sécurité consommateur",null,"Majeure",0,1," Majeure"]
[null,null,{"$f":"C105+1","v":91},"Le bon fonctionnement de l'inspectrice est-il vérifié quotidiennement? la procédure d'étalonnage de l'inspectrice est-elle exécutée selon une fréquence définie? chaque opération est-elle consignée?  ","Sécurité consommateur",null,"Majeure",0,1," Majeure"]
[null,null,{"$f":"C106+1","v":92},"Existe-t-il un disposititif permettant d'interrompre le lavage en cas de dysfonctionnement de l'inspectrice?  ","Sécurité consommateur",null,"Majeure",0,1," Majeure"]
[null,null,{"$f":"C107+1","v":93},"Le plan d'hygiène de la zône \"sortie laveuse\" ou \"zone propre\" est-il défini? ","Qualité lavage",null,"Majeure",0,1," Majeure"]
[null,null,{"$f":"C108+1","v":94},"Les premiers convoyeurs en sortie de laveuse sont-ils nettoyés et désinfectés quotidiennement?","Qualité lavage",null,"Majeure",0,1," Majeure"]
[null,null,{"$f":"C109+1","v":95},"Est-ce qu'il y des surfaces présentant des traces de condensation en sortie de la laveuse? ","Qualité lavage",null,"Mineure",0,1," Mineure"]
[null,null,96,"Est-ce que la sortie de la laveuse peut-être nettoyée complétement et facilement?","Qualité lavage",null,"Mineure",0,1," Mineure"]
[null,null,97,"Les opérateurs interférant dans cette zone de préparation au lavage ont-ils suivi une sensibilisation à l'hygiène? ","Qualité lavage",null,"Mineure",0,1," Mineure"]
[null,null,98,"La zone \"sortie laveuse\" vers le packaging est-elle nettoyée de manière régulière?","Qualité lavage",null,"Mineure",0,1," Mineure"]
[null,null,99,"Est-ce qu'il y a présence de matériel inutile stocké en zone sensible?","Qualité lavage",null,"Mineure",0,1," Mineure"]
[null,null,100,"Les emballages lavés sont-ils palettisés/filmés dans les 10 minutes après leur arrivée sur les convoyeurs ?","Sécurité consommateur",null,"Mineure",0,1," Mineure"]
[null,null,101,"Les emballages secondaires (intercalaires, films alimentaires, palettes…) sont-ils stockés dans une zone propre et leur état de propreté est-il contrôlé avant utilisation? ","Qualité lavage",null,"Mineure",0,1," Mineure"]
[null,null,102,"Est-ce que le plan d'hygiène de cette zone est disponible, lisible et compréhensible par tous ?","Qualité lavage",null,"Mineure",0,1," Mineure"]
[null,null,103,"Le plan d'hygiène prévoit-il une phase de détergence et de désinfection de tous les convoyeurs en sortie de la ou des laveuses? ","Qualité lavage",null,"Mineure",0,1," Mineure"]
[null,null,104,"Les temps de contact des produits détergents et désinfectants sont-ils respectés?","Qualité lavage",null,"Majeure",0,1," Majeure"]
[null,null,105,"L'eau de nettoyage et rinçage est-elle contrôlée microbiologiquement?","Qualité lavage",null,"Mineure",0,1," Mineure"]
[null,null,106,"Le plan d'hygiène est-il connu des opérateurs exécutant les opérations de nettoyage? ","Qualité lavage",null,"Mineure",0,1," Mineure"]
[null,null,107,"Les murs et sols de la zone sont-ils moussés régulièrement selon un  programme? (Mousser : appliquer un détergeant moussant sur les surface)","Qualité lavage",null,"Recommandé",0,1," Recommandé"]
[null,null,108,"Les outils de nettoyage (brosses, raclettes …) sont-ils nettoyés après usage et stockés proprement?","Qualité lavage",null,"Mineure",0,1," Mineure"]
[null,null,109,"Evalue-t-on le bon suivi des procédures de nettoyage ?","Qualité lavage",null,"Mineure",0,1," Mineure"]
[null,null,110,"Les convoyeurs sont ils équipés d'un système de nettoyage en place ?","Qualité lavage",null,"Recommandé",0,1," Recommandé"]
[null,null,111,"Existe-t-il un dispositif pour minimiser l'hygrométrie à l'intérieur de la bouteille avant la paletisation et le filmage?","Qualité lavage",null,"Mineure",0,1," Mineure"]
[null,null,112,"L'hygrométrie de la zone de paletisation/filmage est-elle surveillée et enregistrée?","Qualité lavage",null,"Mineure",0,1," Mineure"]
[null,null,113,"L'hygrométrie de la zone de paletisation/filmage est-elle contrôlée?","Qualité lavage",null,"Mineure",0,1," Mineure"]
[null,null,114,"Les équipements de protection individuelle sont-ils adaptés à la zone dans laquelle l'opérateur traveille (zone propre vs. zone sale) ?","Qualité lavage",null,"Mineure",0,1," Mineure"]
[null,null,115,"Ces opérateurs ont-il reçu une sensibilisation aux risques chimiques lié à l'utilisation de produits de nettoyage? ","Sécurité opérateurs",null,"Majeure",0,1," Majeure"]
[null,null,{"$f":"C130+1","v":116},"Existe-il un  programme de nettoyage des équipements personnels come les bottes, tabliers…","Qualité lavage",null,"Mineure",0,1," Mineure"]
[null,null,null,"Zone de stockage des produits finis (palettes filmées d'emballages lavés)"]
[null,null,{"$f":"C131+1","v":117},"Les compartiments de rangement ou les racks, sont-ils identifiés et les positions des palettes sont-elles remontées dans le système de traçabilité?    ","Traçabilité",null,"Mineure",{"$f":"IF(ISBLANK(F133),0,1)","v":0},{"$f":"IF(ISBLANK(D133),0,1)","v":1},{"$f":"F133&\" \"&G133","v":" Mineure"}]
[null,null,{"$f":"C133+1","v":118},"Cette zone est-elle rendue inaccessible ou surveillée en dehors des périodes de chargement des camions?","Fiabilité lavage",null,"Mineure",0,{"$f":"IF(ISBLANK(D134),0,1)","v":1}," Mineure"]
[null,null,{"$f":"C134+1","v":119},"La zone de stockage des produits finis est-elle rangée et d'apparence propre (exempte d'accumulation de poussière, de toiles d'araignées,…)?","Qualité lavage",null,"Mineure",0,{"$f":"IF(ISBLANK(D135),0,1)","v":1}," Mineure"]
[null,null,{"$f":"C135+1","v":120},"Les produits finis sont-ils gérés en FIFO pour leur expédition chez les Clients du Centre de lavage?","Qualité lavage",null,"Recommandé",{"$f":"IF(ISBLANK(F136),0,1)","v":0},{"$f":"IF(ISBLANK(D136),0,1)","v":1},{"$f":"F136&\" \"&G136","v":" Recommandé"}]

{"sheet":"Grille d'évaluation","index":2,"n_rows":28,"n_cols":11,"rows_kept":28,"cut":false,"hidden":false,"merged":[]}
[]
[]
[null,{"$f":"IF(C5<>D5,\"Attention questionnaire incomplet, résultats erronés\",\"Questionnaire totalement complété\")","v":"Attention questionnaire incomplet, résultats erronés"},null,null,null,null,null,null,null,null,"Conformité"]
[null,"Informations sur le questionnaires",null,null,null,null,null,null,null,null,"Non-conformité"]
[null,"Nombre de questions:",{"$f":"SUMIF(Questionnaire!$C$7:$C$145,\"<>\"\"\",Questionnaire!$I$7:$I$145)","v":120},{"$f":"SUMIF(Questionnaire!$F$7:$F$145,\"<>\"\"\",Questionnaire!$H$7:$H$145)","v":0},null,null,null,null,null,null,"Sans objet"]
[null,"Nombre de questions sur d'éventuelles non conformités majeures:",{"$f":"SUMIF(Questionnaire!$G$7:$G$145,\"Majeure\",Questionnaire!$I$7:$I$145)","v":34},null,null,null,null,null,null,null,"Non évaluable"]
[null,"Nombre de questions sur d'éventuelles non conformités mineures:",{"$f":"SUMIF(Questionnaire!$G$7:$G$145,\"Mineure\",Questionnaire!$I$7:$I$145)","v":57}]
[null,"Nombre de questions suggérant des recommandations:",{"$f":"C5-C6-C7","v":29}]
[]
[null,"Informations sur les Non-conformités"]
[null,"Nombre total de non-conformités:",{"$f":"IF($D$5<>$C$5,\"Questionnaire incomplet\",SUMIF(Questionnaire!$F$7:$F$145,\"Non-conformité\",Questionnaire!$I$7:$I$145))","v":"Questionnaire incomplet"}]
[null,"Nombre total de non-conformités majeures:",{"$f":"IF($D$5<>$C$5,\"Questionnaire incomplet\",SUMIF(Questionnaire!$J$7:$J$145,\"Non-conformité Majeure\",Questionnaire!$I$7:$I$145))","v":"Questionnaire incomplet"}]
[null,"Nombre total de non-conformités mineures:",{"$f":"IF($D$5<>$C$5,\"Questionnaire incomplet\",SUMIF(Questionnaire!$J$7:$J$145,\"Non-conformité Mineure\",Questionnaire!$I$7:$I$145))","v":"Questionnaire incomplet"}]
[null,"Nombre de questions sans objet:",{"$f":"IF($D$5<>$C$5,\"Questionnaire incomplet\",SUMIF(Questionnaire!$J$7:$J$145,\"Sans objet*\",Questionnaire!$I$7:$I$145))","v":"Questionnaire incomplet"}]
[null,"Nombre de questions non évaluables:",{"$f":"IF($D$5<>$C$5,\"Questionnaire incomplet\",SUMIF(Questionnaire!$J$7:$J$145,\"Non évaluable*\",Questionnaire!$I$7:$I$145))","v":"Questionnaire incomplet"}]
[]
[null,"Synthèse"]
[null,"Taux de Conformités majeures:",{"$f":"IF($D$5<>$C$5,\"Questionnaire incomplet\",1-C12/C6)","v":"Questionnaire incomplet"}]
[null,"Taux de Conformités mineures:",{"$f":"IF($D$5<>$C$5,\"Questionnaire incomplet\",1-C13/C7)","v":"Questionnaire incomplet"}]
[null,"Taux de Conformité global: ",{"$f":"IF($D$5<>$C$5,\"Questionnaire incomplet\",1-C11/C5)","v":"Questionnaire incomplet"}]
[null,"Par thématique liée au Lavage"]
[null,"Taux de conformité sur le critère de la Sécurité des opérateurs:",{"$f":"IF($D$5<>$C$5,\"Questionnaire incomplet\",1-SUMIFS(Questionnaire!$I$7:$I$145,Questionnaire!$E$7:$E$145,\"Sécurité opérateurs\",Questionnaire!$F$7:$F$145,\"Non-conformité\")/D22)","v":"Questionnaire incomplet"},{"$f":"SUMIF(Questionnaire!$E$7:$E$145,\"Sécurité opérateurs\",Questionnaire!$I$7:$I$145)","v":7}]
[null,"Taux de conformité sur le critère de la Qualité du lavage:",{"$f":"IF($D$5<>$C$5,\"Questionnaire incomplet\",1-SUMIFS(Questionnaire!$I$7:$I$145,Questionnaire!$E$7:$E$145,\"Qualité Lavage\",Questionnaire!$F$7:$F$145,\"Non-conformité\")/D23)","v":"Questionnaire incomplet"},{"$f":"SUMIF(Questionnaire!$E$7:$E$145,\"Qualité Lavage\",Questionnaire!$I$7:$I$145)","v":69}]
[null,"Taux de conformité sur le critère de l'Hygiène générale:",{"$f":"IF($D$5<>$C$5,\"Questionnaire incomplet\",1-SUMIFS(Questionnaire!$I$7:$I$145,Questionnaire!$E$7:$E$145,\"Hygiène générale\",Questionnaire!$F$7:$F$145,\"Non-conformité\")/D24)","v":"Questionnaire incomplet"},{"$f":"SUMIF(Questionnaire!$E$7:$E$145,\"Hygiène générale\",Questionnaire!$I$7:$I$145)","v":18}]
[null,"Taux de conformité sur le critère de l'Environnement:",{"$f":"IF($D$5<>$C$5,\"Questionnaire incomplet\",1-SUMIFS(Questionnaire!$I$7:$I$145,Questionnaire!$E$7:$E$145,\"Environnement\",Questionnaire!$F$7:$F$145,\"Non-conformité\")/D25)","v":"Questionnaire incomplet"},{"$f":"SUMIF(Questionnaire!$E$7:$E$145,\"Environnement\",Questionnaire!$I$7:$I$145)","v":3}]
[null,"Taux de conformité sur le critère de la Traçabilité:",{"$f":"IF($D$5<>$C$5,\"Questionnaire incomplet\",1-SUMIFS(Questionnaire!$I$7:$I$145,Questionnaire!$E$7:$E$145,\"Traçabilité\",Questionnaire!$F$7:$F$145,\"Non-conformité\")/D26)","v":"Questionnaire incomplet"},{"$f":"SUMIF(Questionnaire!$E$7:$E$145,\"Traçabilité\",Questionnaire!$I$7:$I$145)","v":7}]
[null,"Taux de conformité sur le critère de la Fiabilité du lavage:",{"$f":"IF($D$5<>$C$5,\"Questionnaire incomplet\",1-SUMIFS(Questionnaire!$I$7:$I$145,Questionnaire!$E$7:$E$145,\"Fiabilité lavage\",Questionnaire!$F$7:$F$145,\"Non-conformité\")/D27)","v":"Questionnaire incomplet"},{"$f":"SUMIF(Questionnaire!$E$7:$E$145,\"Fiabilité lavage\",Questionnaire!$I$7:$I$145)","v":9}]
[null,"Taux de conformité sur le critère de la Sécurité consommateur:",{"$f":"IF($D$5<>$C$5,\"Questionnaire incomplet\",1-SUMIFS(Questionnaire!$I$7:$I$145,Questionnaire!$E$7:$E$145,\"Sécurité consommateur\",Questionnaire!$F$7:$F$145,\"Non-conformité\")/D28)","v":"Questionnaire incomplet"},{"$f":"SUMIF(Questionnaire!$E$7:$E$145,\"Sécurité consommateur\",Questionnaire!$I$7:$I$145)","v":7}]